[Event "*** Titled Tuesday Blitz"]
[Site "Chess.com"]
[Date "2020.05.26"]
[Round "3"]
[White "Gerodot71"]
[Black "Konek-Gorbunok"]
[Result "0-1"]
[WhiteElo "2380"]
[BlackElo "2225"]
[TimeControl "180+1"]
[EndTime "10:28:13 PDT"]
[Termination "Konek-Gorbunok won by resignation"]

1. d4 {[%clk 0:03:00.9]} 1... c5 {[%clk 0:02:59.8]} 2. d5 {[%clk 0:03:00.9]}
2... e5 {[%clk 0:02:59.7]} 3. e4 {[%clk 0:02:57.2]} 3... d6 {[%clk 0:02:59.9]}
4. Nc3 {[%clk 0:02:57.5]} 4... Nf6 {[%clk 0:02:59.8]} 5. a4 {[%clk 0:02:57.3]}
5... g6 {[%clk 0:02:59.1]} 6. h3 {[%clk 0:02:48.3]} 6... Bg7 {[%clk 0:02:58.4]}
7. Nf3 {[%clk 0:02:48.8]} 7... O-O {[%clk 0:02:58.2]} 8. Be2 {[%clk 0:02:49.2]}
8... Ne8 {[%clk 0:02:57.5]} 9. O-O {[%clk 0:02:43.8]} 9... f5 {[%clk 0:02:54.9]}
10. Nd2 {[%clk 0:02:43.5]} 10... f4 {[%clk 0:02:44.1]} 11. Bg4 {[%clk 0:02:43]}
11... Nf6 {[%clk 0:02:43.7]} 12. Bxc8 {[%clk 0:02:40.1]} 12... Qxc8 {[%clk
0:02:44.1]} 13. Nc4 {[%clk 0:02:40.7]} 13... Ne8 {[%clk 0:02:38]} 14. f3 {[%clk
0:02:38.3]} 14... Nd7 {[%clk 0:02:23.5]} 15. Nb5 {[%clk 0:02:36.6]} 15... Qb8
{[%clk 0:02:08.3]} 16. a5 {[%clk 0:02:33.8]} 16... Ndf6 {[%clk 0:02:04.1]} 17.
Qd3 {[%clk 0:02:29.8]} 17... Qd8 {[%clk 0:01:57.4]} 18. a6 {[%clk 0:02:28.7]}
18... b6 {[%clk 0:01:52.7]} 19. Bd2 {[%clk 0:02:26]} 19... g5 {[%clk 0:01:50.6]}
20. c3 {[%clk 0:02:25.2]} 20... h5 {[%clk 0:01:45.7]} 21. Kf2 {[%clk 0:02:17.9]}
21... g4 {[%clk 0:01:42.6]} 22. hxg4 {[%clk 0:02:17.5]} 22... hxg4 {[%clk
0:01:42.3]} 23. Ke2 {[%clk 0:02:17.6]} 23... Qd7 {[%clk 0:01:32.5]} 24. Nca3
{[%clk 0:02:07]} 24... Nc7 {[%clk 0:01:25.1]} 25. Rac1 {[%clk 0:01:58.9]} 25...
Nfe8 {[%clk 0:01:16.7]} 26. Kd1 {[%clk 0:01:54.4]} 26... Nxa6 {[%clk 0:01:01.4]}
27. Nxd6 {[%clk 0:01:33.2]} 27... Qa4+ {[%clk 0:01:00.5]} 28. Nc2 {[%clk
0:01:32.7]} 28... Nxd6 {[%clk 0:00:54.2]} 29. Ra1 {[%clk 0:01:32.1]} 29... c4
{[%clk 0:00:37.4]} 30. Rxa4 {[%clk 0:01:22.2]} 30... cxd3 {[%clk 0:00:36.6]} 31.
Ne1 {[%clk 0:01:21.3]} 31... Nc5 {[%clk 0:00:35.5]} 32. Ra3 {[%clk 0:01:20.9]}
32... Nc4 {[%clk 0:00:33.1]} 33. Ra2 {[%clk 0:01:19.3]} 33... Nb3 {[%clk
0:00:23.8]} 34. Nxd3 {[%clk 0:01:18.3]} 34... Ncxd2 {[%clk 0:00:19.9]} 35. Rh1
{[%clk 0:01:17.7]} 35... gxf3 {[%clk 0:00:18.4]} 36. gxf3 {[%clk 0:01:15.5]}
36... Nxf3 {[%clk 0:00:18.6]} 37. Ke2 {[%clk 0:01:14.1]} 37... Nfd2 {[%clk
0:00:18]} 38. Nb4 {[%clk 0:01:06.8]} 38... f3+ {[%clk 0:00:17.6]} 39. Kf2 {[%clk
0:01:06.3]} 39... Nxe4+ {[%clk 0:00:16.9]} 40. Ke3 {[%clk 0:01:06]} 40... f2
{[%clk 0:00:16.4]} 41. Kxe4 {[%clk 0:01:02.8]} 41... f1=Q {[%clk 0:00:16.5]} 42.
Rxf1 {[%clk 0:01:03]} 42... Rxf1 {[%clk 0:00:17.4]} 43. d6 {[%clk 0:01:03.3]}
43... Ra1 {[%clk 0:00:17.1]} 44. Kd5 {[%clk 0:01:02.1]} 44... Rxa2 {[%clk
0:00:16.3]} 45. Nxa2 {[%clk 0:01:02.4]} 45... Nc5 {[%clk 0:00:15.8]} 46. b4
{[%clk 0:01:00.5]} 46... Nd7 {[%clk 0:00:15.2]} 47. Ke6 {[%clk 0:01:00.8]} 47...
Nf8+ {[%clk 0:00:12.9]} 48. Ke7 {[%clk 0:01:00.4]} 48... e4 {[%clk 0:00:12.1]}
49. c4 {[%clk 0:00:58.4]} 49... e3 {[%clk 0:00:11.6]} 50. Nc1 {[%clk 0:00:58.4]}
50... Ng6+ {[%clk 0:00:10.9]} 51. Ke6 {[%clk 0:00:57.9]} 51... Nf4+ {[%clk
0:00:10.9]} 52. Ke7 {[%clk 0:00:56.1]} 52... e2 {[%clk 0:00:11.8]} 53. Nxe2
{[%clk 0:00:56.2]} 53... Nxe2 {[%clk 0:00:11.8]} 54. c5 {[%clk 0:00:56.8]} 54...
bxc5 {[%clk 0:00:11]} 55. bxc5 {[%clk 0:00:57.2]} 55... Nd4 {[%clk 0:00:11.9]}
56. Kd7 {[%clk 0:00:55.7]} 56... a5 {[%clk 0:00:11.2]} 57. c6 {[%clk 0:00:51.6]}
57... Nxc6 {[%clk 0:00:11.3]} 0-1

[Event "*** Titled Tuesday Blitz"]
[Site "Chess.com"]
[Date "2020.05.26"]
[Round "3"]
[White "chenxiaoyuer"]
[Black "Alopekos"]
[Result "0-1"]
[WhiteElo "2310"]
[BlackElo "2514"]
[TimeControl "180+1"]
[EndTime "10:28:14 PDT"]
[Termination "Alopekos won by checkmate"]

1. e4 {[%clk 0:03:00.9]} 1... c5 {[%clk 0:02:59]} 2. Nf3 {[%clk 0:03:00.7]} 2...
e6 {[%clk 0:02:59.5]} 3. d4 {[%clk 0:03:00.1]} 3... cxd4 {[%clk 0:03:00.1]} 4.
Nxd4 {[%clk 0:03:01]} 4... Nc6 {[%clk 0:03:00.5]} 5. Nc3 {[%clk 0:03:00.6]} 5...
Qc7 {[%clk 0:03:00.9]} 6. Be3 {[%clk 0:02:59]} 6... a6 {[%clk 0:03:01.3]} 7. Be2
{[%clk 0:02:57.8]} 7... Nf6 {[%clk 0:03:01.6]} 8. O-O {[%clk 0:02:55.7]} 8...
Bb4 {[%clk 0:03:02.3]} 9. Na4 {[%clk 0:02:55.6]} 9... O-O {[%clk 0:03:01.6]} 10.
c4 {[%clk 0:02:44.3]} 10... Bd6 {[%clk 0:03:00.4]} 11. f4 {[%clk 0:02:34.4]}
11... Nxe4 {[%clk 0:02:59.1]} 12. c5 {[%clk 0:02:29]} 12... Nxc5 {[%clk
0:02:22.7]} 13. Nf5 {[%clk 0:02:02.1]} 13... exf5 {[%clk 0:01:56.3]} 14. Nxc5
{[%clk 0:01:50.6]} 14... Re8 {[%clk 0:01:56.1]} 15. Qd2 {[%clk 0:01:44.1]} 15...
b6 {[%clk 0:01:24.5]} 16. Nd3 {[%clk 0:01:38.9]} 16... Bb7 {[%clk 0:01:16.3]}
17. Rac1 {[%clk 0:01:35.6]} 17... Qd8 {[%clk 0:00:37]} 18. Bf3 {[%clk
0:01:32.3]} 18... Na5 {[%clk 0:00:31.3]} 19. Bxb7 {[%clk 0:01:16.4]} 19... Nxb7
{[%clk 0:00:31.2]} 20. Qf2 {[%clk 0:01:11.5]} 20... b5 {[%clk 0:00:22.8]} 21.
Bd4 {[%clk 0:01:08.7]} 21... Bf8 {[%clk 0:00:19.2]} 22. Rfe1 {[%clk 0:00:57.8]}
22... Rxe1+ {[%clk 0:00:16]} 23. Rxe1 {[%clk 0:00:56.7]} 23... Nd6 {[%clk
0:00:16.7]} 24. Qf3 {[%clk 0:00:52.9]} 24... Ne4 {[%clk 0:00:16.5]} 25. Nf2
{[%clk 0:00:48.6]} 25... d5 {[%clk 0:00:14.9]} 26. Nd3 {[%clk 0:00:45.7]} 26...
Qa5 {[%clk 0:00:11.6]} 27. Rc1 {[%clk 0:00:42.9]} 27... Qa4 {[%clk 0:00:11.6]}
28. Qe3 {[%clk 0:00:40.6]} 28... Qxa2 {[%clk 0:00:11.3]} 29. Ne5 {[%clk
0:00:38.7]} 29... Re8 {[%clk 0:00:10.1]} 30. Rc7 {[%clk 0:00:37.8]} 30... Qb1+
{[%clk 0:00:08.8]} 31. Rc1 {[%clk 0:00:35.9]} 31... Qa2 {[%clk 0:00:09.3]} 32.
Rc7 {[%clk 0:00:35.5]} 32... f6 {[%clk 0:00:09]} 33. Qf3 {[%clk 0:00:26.8]}
33... fxe5 {[%clk 0:00:07.9]} 34. Bxe5 {[%clk 0:00:15.6]} 34... Qb1+ {[%clk
0:00:07.6]} 35. Qf1 {[%clk 0:00:15.4]} 35... Bc5+ {[%clk 0:00:05.9]} 36. Rxc5
{[%clk 0:00:15]} 36... Qxf1+ {[%clk 0:00:06]} 37. Kxf1 {[%clk 0:00:15.2]} 37...
Nxc5 {[%clk 0:00:06.7]} 38. Bd4 {[%clk 0:00:16.1]} 38... Nd7 {[%clk 0:00:07.1]}
39. Bxg7 {[%clk 0:00:17]} 39... Kxg7 {[%clk 0:00:07.4]} 40. g4 {[%clk
0:00:17.7]} 40... fxg4 {[%clk 0:00:07.6]} 41. h4 {[%clk 0:00:18.6]} 41... Nf6
{[%clk 0:00:07.8]} 42. f5 {[%clk 0:00:19.5]} 42... Re4 {[%clk 0:00:08.3]} 43. h5
{[%clk 0:00:20.4]} 43... Rf4+ {[%clk 0:00:08.9]} 44. Kg2 {[%clk 0:00:20.3]}
44... Nxh5 {[%clk 0:00:09.7]} 45. b4 {[%clk 0:00:20.7]} 45... Kf6 {[%clk
0:00:09.7]} 46. Kg1 {[%clk 0:00:20.3]} 46... Kxf5 {[%clk 0:00:10.3]} 47. Kg2
{[%clk 0:00:21.2]} 47... Rxb4 {[%clk 0:00:10.9]} 48. Kg1 {[%clk 0:00:21.2]}
48... Rb2 {[%clk 0:00:11.4]} 49. Kf1 {[%clk 0:00:21.2]} 49... a5 {[%clk
0:00:11.9]} 50. Ke1 {[%clk 0:00:22.1]} 50... a4 {[%clk 0:00:12.1]} 51. Kf1
{[%clk 0:00:23]} 51... a3 {[%clk 0:00:12.4]} 52. Ke1 {[%clk 0:00:23.9]} 52... a2
{[%clk 0:00:12.9]} 53. Kd1 {[%clk 0:00:24.8]} 53... a1=Q# {[%clk 0:00:13]} 0-1

[Event "*** Titled Tuesday Blitz"]
[Site "Chess.com"]
[Date "2020.05.26"]
[Round "3"]
[White "OK97"]
[Black "davidkalashian"]
[Result "0-1"]
[WhiteElo "2784"]
[BlackElo "2619"]
[TimeControl "180+1"]
[EndTime "10:28:15 PDT"]
[Termination "davidkalashian won by checkmate"]

1. e4 {[%clk 0:03:00.9]} 1... c6 {[%clk 0:02:58.3]} 2. d4 {[%clk 0:03:00.5]}
2... g6 {[%clk 0:02:57.8]} 3. Nc3 {[%clk 0:02:54.9]} 3... Bg7 {[%clk 0:02:56.7]}
4. h4 {[%clk 0:02:53.2]} 4... h5 {[%clk 0:02:55.3]} 5. Be3 {[%clk 0:02:39.3]}
5... d5 {[%clk 0:02:53]} 6. e5 {[%clk 0:02:39.3]} 6... Nh6 {[%clk 0:02:52.2]} 7.
Qd2 {[%clk 0:02:39.4]} 7... Nf5 {[%clk 0:02:45.7]} 8. Bf4 {[%clk 0:02:34.9]}
8... Nd7 {[%clk 0:02:39.4]} 9. Nf3 {[%clk 0:02:29.2]} 9... Nf8 {[%clk
0:02:38.8]} 10. Bd3 {[%clk 0:02:21.7]} 10... Qb6 {[%clk 0:02:30.9]} 11. Na4
{[%clk 0:02:13.7]} 11... Qd8 {[%clk 0:02:27.9]} 12. c3 {[%clk 0:01:57.6]} 12...
Ne6 {[%clk 0:02:25.5]} 13. Bxf5 {[%clk 0:01:32.4]} 13... gxf5 {[%clk 0:02:18.8]}
14. Bh2 {[%clk 0:01:23.8]} 14... f4 {[%clk 0:01:59.8]} 15. b3 {[%clk 0:01:15]}
15... Bh6 {[%clk 0:01:49]} 16. Nb2 {[%clk 0:01:12.9]} 16... Rg8 {[%clk
0:01:48.1]} 17. Rg1 {[%clk 0:01:08.5]} 17... Qa5 {[%clk 0:01:07.7]} 18. Nd3
{[%clk 0:00:55.5]} 18... Rg4 {[%clk 0:01:05.5]} 19. a4 {[%clk 0:00:34.8]} 19...
Bd7 {[%clk 0:00:50]} 20. b4 {[%clk 0:00:34.8]} 20... Qc7 {[%clk 0:00:50.2]} 21.
a5 {[%clk 0:00:15.2]} 21... O-O-O {[%clk 0:00:47.6]} 22. Nc5 {[%clk 0:00:11.3]}
22... Rdg8 {[%clk 0:00:43.6]} 23. Kf1 {[%clk 0:00:09.3]} 23... Nxc5 {[%clk
0:00:41.3]} 24. bxc5 {[%clk 0:00:10.2]} 24... Bf5 {[%clk 0:00:39.9]} 25. a6
{[%clk 0:00:07.4]} 25... Be4 {[%clk 0:00:39.6]} 26. Ne1 {[%clk 0:00:05.8]} 26...
Rxh4 {[%clk 0:00:32.1]} 27. f3 {[%clk 0:00:06]} 27... Rxh2 {[%clk 0:00:30.6]}
28. fxe4 {[%clk 0:00:06.5]} 28... dxe4 {[%clk 0:00:31.5]} 29. Rb1 {[%clk
0:00:06.7]} 29... bxa6 {[%clk 0:00:30.2]} 30. Qe2 {[%clk 0:00:06.9]} 30... f3
{[%clk 0:00:23.4]} 31. Qxa6+ {[%clk 0:00:07.4]} 31... Kd8 {[%clk 0:00:23.8]} 32.
Rb7 {[%clk 0:00:06.8]} 32... Qc8 {[%clk 0:00:20.4]} 33. Qa5+ {[%clk 0:00:07.3]}
33... Ke8 {[%clk 0:00:19]} 34. Qxa7 {[%clk 0:00:07.8]} 34... fxg2+ {[%clk
0:00:18]} 35. Rxg2 {[%clk 0:00:04.2]} 35... Qf5+ {[%clk 0:00:17.4]} 36. Kg1
{[%clk 0:00:02.6]} 36... Rhxg2+ {[%clk 0:00:15.8]} 37. Nxg2 {[%clk 0:00:03.5]}
37... Be3+ {[%clk 0:00:15.8]} 38. Kh2 {[%clk 0:00:04]} 38... Bf4+ {[%clk
0:00:15.3]} 39. Kg1 {[%clk 0:00:02.5]} 39... Be3+ {[%clk 0:00:13.7]} 40. Kh2
{[%clk 0:00:03]} 40... Rxg2+ {[%clk 0:00:13.3]} 41. Kxg2 {[%clk 0:00:03.9]}
41... Qg4+ {[%clk 0:00:11.7]} 42. Kh2 {[%clk 0:00:02.5]} 42... Bf4+ {[%clk
0:00:09.7]} 43. Kh1 {[%clk 0:00:03]} 43... Qh3+ {[%clk 0:00:10.1]} 44. Kg1
{[%clk 0:00:03.6]} 44... Be3# {[%clk 0:00:10.6]} 0-1

[Event "*** Titled Tuesday Blitz"]
[Site "Chess.com"]
[Date "2020.05.26"]
[Round "3"]
[White "BogdanBelyakov89"]
[Black "TokChess"]
[Result "1-0"]
[WhiteElo "2628"]
[BlackElo "2313"]
[TimeControl "180+1"]
[EndTime "10:28:17 PDT"]
[Termination "BogdanBelyakov89 won on time"]

1. e4 {[%clk 0:03:00.9]} 1... d6 {[%clk 0:02:58.1]} 2. d4 {[%clk 0:03:00.7]}
2... Nf6 {[%clk 0:02:58.4]} 3. Nc3 {[%clk 0:03:00.9]} 3... Nbd7 {[%clk
0:02:58.7]} 4. Nf3 {[%clk 0:02:58.1]} 4... e5 {[%clk 0:02:58.7]} 5. Bc4 {[%clk
0:02:55.5]} 5... Be7 {[%clk 0:02:58.8]} 6. O-O {[%clk 0:02:55.5]} 6... O-O
{[%clk 0:02:58.6]} 7. Re1 {[%clk 0:02:55.6]} 7... a6 {[%clk 0:02:58.8]} 8. a4
{[%clk 0:02:55]} 8... b6 {[%clk 0:02:58.7]} 9. h3 {[%clk 0:02:48.4]} 9... Bb7
{[%clk 0:02:58.8]} 10. d5 {[%clk 0:02:44.9]} 10... Nh5 {[%clk 0:02:57.1]} 11.
Bf1 {[%clk 0:02:38.2]} 11... g6 {[%clk 0:02:56.8]} 12. a5 {[%clk 0:02:23.8]}
12... b5 {[%clk 0:02:56]} 13. b4 {[%clk 0:02:20.1]} 13... Ndf6 {[%clk
0:02:54.1]} 14. Bh6 {[%clk 0:02:15.4]} 14... Ng7 {[%clk 0:02:53.2]} 15. g4
{[%clk 0:02:06.4]} 15... Kh8 {[%clk 0:02:52.3]} 16. Bd3 {[%clk 0:02:01.7]} 16...
Ng8 {[%clk 0:02:52.2]} 17. Bxg7+ {[%clk 0:01:56.9]} 17... Kxg7 {[%clk
0:02:52.3]} 18. Ne2 {[%clk 0:01:56]} 18... Bc8 {[%clk 0:02:48.5]} 19. Ng3 {[%clk
0:01:55.5]} 19... Bh4 {[%clk 0:02:43.6]} 20. Nxh4 {[%clk 0:01:53.1]} 20... Qxh4
{[%clk 0:02:42.9]} 21. Kg2 {[%clk 0:01:52.7]} 21... h5 {[%clk 0:02:24.6]} 22. f3
{[%clk 0:01:51.5]} 22... Ne7 {[%clk 0:02:10.6]} 23. Rc1 {[%clk 0:01:49.3]} 23...
Rh8 {[%clk 0:02:03.1]} 24. Rh1 {[%clk 0:01:48.3]} 24... f5 {[%clk 0:01:31.8]}
25. c4 {[%clk 0:01:40.3]} 25... bxc4 {[%clk 0:01:06.2]} 26. Rxc4 {[%clk
0:01:38.5]} 26... Ra7 {[%clk 0:00:57.8]} 27. exf5 {[%clk 0:01:25.5]} 27... gxf5
{[%clk 0:00:47.7]} 28. gxf5 {[%clk 0:01:24.7]} 28... Qf6 {[%clk 0:00:40.4]} 29.
Ne4 {[%clk 0:00:58.1]} 29... Qxf5 {[%clk 0:00:36.1]} 30. Nxd6 {[%clk 0:00:49.4]}
30... Qg5+ {[%clk 0:00:30.8]} 31. Kf2 {[%clk 0:00:49.3]} 31... Kf8 {[%clk
0:00:16.3]} 32. Rg1 {[%clk 0:00:45.2]} 32... Qf6 {[%clk 0:00:15.4]} 33. Nxc8
{[%clk 0:00:41.4]} 33... Nxc8 {[%clk 0:00:13.6]} 34. Qc1 {[%clk 0:00:40.1]}
34... Nd6 {[%clk 0:00:11.4]} 35. Rxc7 {[%clk 0:00:33.6]} 35... Qh4+ {[%clk
0:00:11.3]} 36. Ke2 {[%clk 0:00:32.9]} 36... Ra8 {[%clk 0:00:05]} 37. Qc5 {[%clk
0:00:28]} 37... Rd8 {[%clk 0:00:03.4]} 38. Rc8 {[%clk 0:00:21.6]} 38... Rh6
{[%clk 0:00:02.4]} 39. Rxd8+ {[%clk 0:00:18]} 39... Qxd8 {[%clk 0:00:03]} 40.
Rg6 {[%clk 0:00:14.3]} 40... Rxg6 {[%clk 0:00:02.3]} 41. Bxg6 {[%clk 0:00:14.8]}
41... h4 {[%clk 0:00:01.9]} 42. Bd3 {[%clk 0:00:13.8]} 42... Kg7 {[%clk
0:00:02]} 43. Bxa6 {[%clk 0:00:12.5]} 43... Qf6 {[%clk 0:00:01.8]} 44. Bd3
{[%clk 0:00:12]} 1-0

[Event "*** Titled Tuesday Blitz"]
[Site "Chess.com"]
[Date "2020.05.26"]
[Round "3"]
[White "stoleriu"]
[Black "GMSrinath"]
[Result "1/2-1/2"]
[WhiteElo "2557"]
[BlackElo "2819"]
[TimeControl "180+1"]
[EndTime "10:28:18 PDT"]
[Termination "Game drawn - insufficient material"]

1. e4 {[%clk 0:03:00.9]} 1... c5 {[%clk 0:02:59]} 2. Nf3 {[%clk 0:03:00.1]} 2...
d6 {[%clk 0:02:58.9]} 3. Bb5+ {[%clk 0:02:57.7]} 3... Nd7 {[%clk 0:02:58.4]} 4.
d4 {[%clk 0:02:57.2]} 4... cxd4 {[%clk 0:02:58.7]} 5. Qxd4 {[%clk 0:02:58.1]}
5... a6 {[%clk 0:02:59.1]} 6. Bxd7+ {[%clk 0:02:55.3]} 6... Bxd7 {[%clk
0:03:00]} 7. c4 {[%clk 0:02:56.2]} 7... Rc8 {[%clk 0:02:56.6]} 8. O-O {[%clk
0:02:55.2]} 8... e5 {[%clk 0:02:57]} 9. Qd3 {[%clk 0:02:54.8]} 9... h6 {[%clk
0:02:57.5]} 10. Nc3 {[%clk 0:02:50.5]} 10... Nf6 {[%clk 0:02:57.7]} 11. b3
{[%clk 0:02:46.1]} 11... Be7 {[%clk 0:02:56.8]} 12. Ba3 {[%clk 0:02:45.9]} 12...
Qa5 {[%clk 0:02:46.7]} 13. Bb2 {[%clk 0:02:09.2]} 13... O-O {[%clk 0:02:44.3]}
14. Rfd1 {[%clk 0:02:08.2]} 14... b5 {[%clk 0:02:42.9]} 15. cxb5 {[%clk
0:02:04.7]} 15... axb5 {[%clk 0:02:43.8]} 16. a3 {[%clk 0:02:05.1]} 16... Be6
{[%clk 0:02:42.3]} 17. b4 {[%clk 0:02:03]} 17... Qa8 {[%clk 0:02:40.6]} 18. Nd2
{[%clk 0:01:44.9]} 18... d5 {[%clk 0:02:33.2]} 19. exd5 {[%clk 0:01:35]} 19...
Nxd5 {[%clk 0:02:34.1]} 20. Nxd5 {[%clk 0:01:18.8]} 20... Bxd5 {[%clk 0:02:35]}
21. f3 {[%clk 0:01:19.1]} 21... Rfd8 {[%clk 0:02:20.4]} 22. Bxe5 {[%clk
0:01:13.6]} 22... Bc4 {[%clk 0:02:18.9]} 23. Qe4 {[%clk 0:01:09.5]} 23... Bg5
{[%clk 0:02:12.2]} 24. Qxa8 {[%clk 0:01:03.6]} 24... Rxa8 {[%clk 0:02:13.1]} 25.
Nxc4 {[%clk 0:00:51]} 25... Rxd1+ {[%clk 0:02:12.1]} 26. Rxd1 {[%clk 0:00:51.9]}
26... bxc4 {[%clk 0:02:13]} 27. f4 {[%clk 0:00:50.9]} 27... Be7 {[%clk
0:02:09.1]} 28. Rd7 {[%clk 0:00:41.3]} 28... Bf8 {[%clk 0:02:06.5]} 29. Rc7
{[%clk 0:00:41.3]} 29... Rxa3 {[%clk 0:01:59.5]} 30. Rc8 {[%clk 0:00:37.6]}
30... Rd3 {[%clk 0:01:56.9]} 31. b5 {[%clk 0:00:35.7]} 31... f6 {[%clk
0:01:57.3]} 32. b6 {[%clk 0:00:20.3]} 32... fxe5 {[%clk 0:01:33.1]} 33. b7
{[%clk 0:00:20.5]} 33... Rb3 {[%clk 0:01:33.7]} 34. b8=Q {[%clk 0:00:20.7]}
34... Rxb8 {[%clk 0:01:33.4]} 35. Rxb8 {[%clk 0:00:21.6]} 35... exf4 {[%clk
0:01:34.3]} 36. Rc8 {[%clk 0:00:21.2]} 36... Kf7 {[%clk 0:01:34.4]} 37. Rxc4
{[%clk 0:00:21.7]} 37... g5 {[%clk 0:01:33.4]} 38. Kf2 {[%clk 0:00:22.1]} 38...
Kg6 {[%clk 0:01:32.4]} 39. Kf3 {[%clk 0:00:20.1]} 39... Kf5 {[%clk 0:01:32.2]}
40. g3 {[%clk 0:00:08.9]} 40... fxg3 {[%clk 0:01:33.1]} 41. hxg3 {[%clk
0:00:07.8]} 41... h5 {[%clk 0:01:33.6]} 42. Ra4 {[%clk 0:00:07.7]} 42... Bd6
{[%clk 0:01:31.7]} 43. Ra5+ {[%clk 0:00:07.5]} 43... Be5 {[%clk 0:01:32.2]} 44.
Rb5 {[%clk 0:00:07.9]} 44... Kf6 {[%clk 0:01:27.7]} 45. g4 {[%clk 0:00:05.1]}
45... hxg4+ {[%clk 0:01:22.4]} 46. Kxg4 {[%clk 0:00:06]} 46... Bf4 {[%clk
0:01:23.3]} 47. Rb6+ {[%clk 0:00:04.7]} 47... Ke5 {[%clk 0:01:23.2]} 48. Rb7
{[%clk 0:00:03]} 48... Kf6 {[%clk 0:01:22]} 49. Rh7 {[%clk 0:00:03.9]} 49... Ke6
{[%clk 0:01:19.1]} 50. Rh1 {[%clk 0:00:04.8]} 50... Kf6 {[%clk 0:01:18]} 51. Re1
{[%clk 0:00:05.1]} 51... Bd2 {[%clk 0:01:18.1]} 52. Re2 {[%clk 0:00:05.2]} 52...
Bf4 {[%clk 0:01:18.5]} 53. Re4 {[%clk 0:00:05.5]} 53... Bd2 {[%clk 0:01:17.1]}
54. Rd4 {[%clk 0:00:05.9]} 54... Be3 {[%clk 0:01:15.5]} 55. Rd3 {[%clk 0:00:06]}
55... Bf4 {[%clk 0:01:15.7]} 56. Rd5 {[%clk 0:00:06]} 56... Ke6 {[%clk
0:01:15.6]} 57. Rf5 {[%clk 0:00:06.1]} 57... Be3 {[%clk 0:01:11]} 58. Rxg5
{[%clk 0:00:05.1]} 58... Bxg5 {[%clk 0:01:10.9]} 1/2-1/2

[Event "*** Titled Tuesday Blitz"]
[Site "Chess.com"]
[Date "2020.05.26"]
[Round "3"]
[White "penguingm1"]
[Black "Doraemon7"]
[Result "1-0"]
[WhiteElo "2864"]
[BlackElo "2633"]
[TimeControl "180+1"]
[EndTime "10:28:19 PDT"]
[Termination "penguingm1 won by resignation"]

1. d4 {[%clk 0:03:00.9]} 1... d5 {[%clk 0:02:56.4]} 2. Bf4 {[%clk 0:03:01]} 2...
Nf6 {[%clk 0:02:54.7]} 3. e3 {[%clk 0:03:01.4]} 3... e6 {[%clk 0:02:54.1]} 4.
Nf3 {[%clk 0:03:01.5]} 4... c5 {[%clk 0:02:51.8]} 5. Nbd2 {[%clk 0:02:58.1]}
5... Bd6 {[%clk 0:02:50.9]} 6. c3 {[%clk 0:02:56.5]} 6... O-O {[%clk 0:02:44.5]}
7. Bd3 {[%clk 0:02:56.3]} 7... Bxf4 {[%clk 0:02:41]} 8. exf4 {[%clk 0:02:57.2]}
8... Qb6 {[%clk 0:02:37.3]} 9. dxc5 {[%clk 0:02:53.7]} 9... Qxc5 {[%clk
0:02:32.3]} 10. O-O {[%clk 0:02:52.5]} 10... Nc6 {[%clk 0:02:12.7]} 11. Re1
{[%clk 0:02:51.7]} 11... Rd8 {[%clk 0:02:07.6]} 12. Qe2 {[%clk 0:02:51.5]} 12...
Bd7 {[%clk 0:01:54.5]} 13. Rad1 {[%clk 0:02:48.8]} 13... a5 {[%clk 0:01:51.3]}
14. Nb3 {[%clk 0:02:47.5]} 14... Qd6 {[%clk 0:01:49.1]} 15. g3 {[%clk
0:02:44.7]} 15... a4 {[%clk 0:01:38.6]} 16. Nbd4 {[%clk 0:02:44.6]} 16... Qc5
{[%clk 0:01:33.4]} 17. a3 {[%clk 0:02:42.6]} 17... Nxd4 {[%clk 0:01:17]} 18.
Nxd4 {[%clk 0:02:42.4]} 18... Qc7 {[%clk 0:01:02.5]} 19. Bc2 {[%clk 0:02:29.2]}
19... Bc6 {[%clk 0:00:57]} 20. Qf3 {[%clk 0:02:04.4]} 20... Re8 {[%clk
0:00:47.3]} 21. Re5 {[%clk 0:02:03.2]} 21... Nd7 {[%clk 0:00:42.3]} 22. Rh5
{[%clk 0:02:03.3]} 22... g6 {[%clk 0:00:42.4]} 23. Rh4 {[%clk 0:02:01.2]} 23...
Qd8 {[%clk 0:00:39.1]} 24. Qg4 {[%clk 0:01:58.6]} 24... Qf6 {[%clk 0:00:38.1]}
25. Qh3 {[%clk 0:01:54.3]} 25... Qg7 {[%clk 0:00:38.2]} 26. Re1 {[%clk
0:01:44.1]} 26... Nf6 {[%clk 0:00:33.9]} 27. g4 {[%clk 0:01:41.9]} 27... Ne4
{[%clk 0:00:22.4]} 28. Bxe4 {[%clk 0:01:18.4]} 28... dxe4 {[%clk 0:00:22.6]} 29.
Qe3 {[%clk 0:00:46.1]} 29... Bd5 {[%clk 0:00:21.2]} 30. Rh3 {[%clk 0:00:39.5]}
30... Rad8 {[%clk 0:00:15.8]} 31. Qg3 {[%clk 0:00:38.4]} 31... Bc4 {[%clk
0:00:13.7]} 32. Qh4 {[%clk 0:00:38.5]} 32... Bd3 {[%clk 0:00:13]} 33. Rg3 {[%clk
0:00:35.9]} 33... Rd5 {[%clk 0:00:12]} 34. f5 {[%clk 0:00:35.8]} 34... g5 {[%clk
0:00:10.4]} 35. Qh5 {[%clk 0:00:34.8]} 35... e5 {[%clk 0:00:06.1]} 36. f6 {[%clk
0:00:35.3]} 36... Qg6 {[%clk 0:00:06.1]} 37. Nf5 {[%clk 0:00:33.6]} 37... Qxf6
{[%clk 0:00:04.8]} 38. h4 {[%clk 0:00:29]} 38... Qg6 {[%clk 0:00:05]} 39. hxg5
{[%clk 0:00:28.3]} 39... Qxh5 {[%clk 0:00:05.1]} 40. gxh5 {[%clk 0:00:28.7]}
40... Kh8 {[%clk 0:00:05.7]} 41. Kg2 {[%clk 0:00:26.8]} 41... Rg8 {[%clk
0:00:05.6]} 42. Kh3 {[%clk 0:00:24]} 42... Rb5 {[%clk 0:00:06]} 43. Nd6 {[%clk
0:00:20.9]} 43... Rxb2 {[%clk 0:00:05.7]} 44. Nxf7+ {[%clk 0:00:21.2]} 44... Kg7
{[%clk 0:00:06.6]} 45. Nxe5 {[%clk 0:00:21.7]} 45... Rd8 {[%clk 0:00:06.3]} 46.
f4 {[%clk 0:00:19.4]} 46... Rb3 {[%clk 0:00:05.8]} 47. f5 {[%clk 0:00:19.6]}
47... Rxc3 {[%clk 0:00:06.1]} 48. f6+ {[%clk 0:00:20.2]} 48... Kf8 {[%clk
0:00:06.3]} 49. g6 {[%clk 0:00:20.7]} 49... hxg6 {[%clk 0:00:07.2]} 50. hxg6
{[%clk 0:00:21.6]} 50... Kg8 {[%clk 0:00:07.3]} 51. g7 {[%clk 0:00:21.6]} 51...
Rc7 {[%clk 0:00:07]} 52. Kg4 {[%clk 0:00:20.7]} 52... Re8 {[%clk 0:00:06.1]} 53.
Kf4 {[%clk 0:00:16.4]} 53... Rd8 {[%clk 0:00:05]} 54. Rh1 {[%clk 0:00:15.8]} 1-0